{"text_format":"3","workbook":"xlsx","n_sheets":6,"sheets":["Registro de llamadas de ventas","Info de contacto de cliente","Antes de la llamada","Llamada por primera vez","Información de ventas","Seguimiento"],"not_rendered":{"defined_names":14},"read":"whole","date_system":"1900"}

{"sheet":"Registro de llamadas de ventas","index":0,"n_rows":13,"n_cols":7,"rows_kept":13}
[null," Nombre de la compañía"]
[null,"Registro de llamadas de ventas"]
[null,"N° de llamada","Cliente","Compañía","Fecha","Hora","Notas"]
[null,1,"Jorge Alcalá",{"$f":"IF(RegistroDeLlamadasDeVentas[[#This Row],[Cliente]]=\"\",\"\",IFERROR(VLOOKUP(RegistroDeLlamadasDeVentas[[#This Row],[Cliente]],InformaciónDeContactoDelCliente[],2,0),\"Not Found\"))","v":"Proseware, Inc."},{"$f":"TODAY()-5","v":"2017-07-20"},"08:30:00"]
[null,2,"Bartolomé Castellanos",{"$f":"IF(RegistroDeLlamadasDeVentas[[#This Row],[Cliente]]=\"\",\"\",IFERROR(VLOOKUP(RegistroDeLlamadasDeVentas[[#This Row],[Cliente]],InformaciónDeContactoDelCliente[],2,0),\"Not Found\"))","v":"Litware, Inc."},{"$f":"TODAY()-5","v":"2017-07-20"},"09:00:00"]
[null,3,"Pedro Armijo",{"$f":"IF(RegistroDeLlamadasDeVentas[[#This Row],[Cliente]]=\"\",\"\",IFERROR(VLOOKUP(RegistroDeLlamadasDeVentas[[#This Row],[Cliente]],InformaciónDeContactoDelCliente[],2,0),\"Not Found\"))","v":"Northwind Traders"},"2017-07-20","09:30:00"]
[null,4,"Ángel Valádez",{"$f":"IF(RegistroDeLlamadasDeVentas[[#This Row],[Cliente]]=\"\",\"\",IFERROR(VLOOKUP(RegistroDeLlamadasDeVentas[[#This Row],[Cliente]],InformaciónDeContactoDelCliente[],2,0),\"Not Found\"))","v":"Lucerne Publishing"},"2017-07-20","10:00:00"]
[null,5,"Liberto Valentín",{"$f":"IF(RegistroDeLlamadasDeVentas[[#This Row],[Cliente]]=\"\",\"\",IFERROR(VLOOKUP(RegistroDeLlamadasDeVentas[[#This Row],[Cliente]],InformaciónDeContactoDelCliente[],2,0),\"Not Found\"))","v":"Margie's Travel"},"2017-07-20","10:30:00"]
[null,6,"Jorge Alcalá",{"$f":"IF(RegistroDeLlamadasDeVentas[[#This Row],[Cliente]]=\"\",\"\",IFERROR(VLOOKUP(RegistroDeLlamadasDeVentas[[#This Row],[Cliente]],InformaciónDeContactoDelCliente[],2,0),\"Not Found\"))","v":"Proseware, Inc."},{"$f":"TODAY()-3","v":"2017-07-22"},"11:00:00"]
[null,7,"Bartolomé Castellanos",{"$f":"IF(RegistroDeLlamadasDeVentas[[#This Row],[Cliente]]=\"\",\"\",IFERROR(VLOOKUP(RegistroDeLlamadasDeVentas[[#This Row],[Cliente]],InformaciónDeContactoDelCliente[],2,0),\"Not Found\"))","v":"Litware, Inc."},{"$f":"TODAY()-3","v":"2017-07-22"},"11:30:00"]
[null,8,"Jorge Alcalá",{"$f":"IF(RegistroDeLlamadasDeVentas[[#This Row],[Cliente]]=\"\",\"\",IFERROR(VLOOKUP(RegistroDeLlamadasDeVentas[[#This Row],[Cliente]],InformaciónDeContactoDelCliente[],2,0),\"Not Found\"))","v":"Proseware, Inc."},{"$f":"TODAY()-1","v":"2017-07-24"},"12:00:00"]
[null,9,"Liberto Valentín",{"$f":"IF(RegistroDeLlamadasDeVentas[[#This Row],[Cliente]]=\"\",\"\",IFERROR(VLOOKUP(RegistroDeLlamadasDeVentas[[#This Row],[Cliente]],InformaciónDeContactoDelCliente[],2,0),\"Not Found\"))","v":"Margie's Travel"},{"$f":"TODAY()-1","v":"2017-07-24"},"12:30:00"]
[null,10,"Liberto Valentín",{"$f":"IF(RegistroDeLlamadasDeVentas[[#This Row],[Cliente]]=\"\",\"\",IFERROR(VLOOKUP(RegistroDeLlamadasDeVentas[[#This Row],[Cliente]],InformaciónDeContactoDelCliente[],2,0),\"Not Found\"))","v":"Margie's Travel"},{"$f":"TODAY()","v":"2017-07-25"},"13:00:00"]

{"sheet":"Info de contacto de cliente","index":1,"n_rows":8,"n_cols":8,"rows_kept":8}
[null,{"$f":"NombreDeLaCompañía","v":" Nombre de la compañía"}]
[null,"Info de contacto de cliente"]
[null,"Nombre del cliente","Nombre de la compañía","Dirección","Ciudad, estado, código postal","Teléfono principal","Teléfono secundario","Correo electrónico"]
[null,"Bartolomé Castellanos","Litware, Inc.","Independencia 100","Mérida, Yuc., 12345","(541) 555-0135","(541) 555-0136","bartolome@litwareinc.com"]
[null,"Ángel Valádez","Lucerne Publishing","Av. Revolución 567","Patzcuaro, Mich. 23456","(425) 555-0198","(425) 555-0199","angel@lucernepublishing.com"]
[null,"Liberto Valentín","Margie's Travel","Vergel 987","Monterrey, N.L., 34567","(888) 555-0125","(888) 555-0126","liberto@margiestravel.com"]
[null,"Pedro Armijo","Northwind Traders","Madero 890","Toluca, Edo. Méx., 45678","(541) 555-0175","(541) 555-0176","pedro@northwindtraders.com"]
[null,"Jorge Alcalá","Proseware, Inc.","Niños Héroes 123","Puerto Vallarta, Jal., 56789","(509) 555-0150","(509) 555-0151","jorge@Proseware.com"]

{"sheet":"Antes de la llamada","index":2,"n_rows":13,"n_cols":3,"rows_kept":13}
[null,{"$f":"NombreDeLaCompañía","v":" Nombre de la compañía"}]
[null,"Lista de comprobación de llamadas de ventas"]
[null,"Casilla","Antes de la llamada"]
[null,null,"Revisar el historial del cliente"]
[null,null,"Revisar el historial de empresario del cliente"]
[null,null,"Revisar prioridades y estrategia de ventas"]
[null,null,"Agregar elemento"]
[null,null,"Agregar elemento"]
[null,null,"Agregar elemento"]
[null,null,"Agregar elemento"]
[null,null,"Agregar elemento"]
[null,null,"Agregar elemento"]
[null,null,"Agregar elemento"]

{"sheet":"Llamada por primera vez","index":3,"n_rows":13,"n_cols":3,"rows_kept":13}
[null,{"$f":"NombreDeLaCompañía","v":" Nombre de la compañía"}]
[null,"Lista de comprobación de llamadas de ventas"]
[null,"Casilla","Llamada por primera vez"]
[null,null,"Llamada directa a la persona adecuada"]
[null,null,"Presentación clara"]
[null,null,"Agregar elemento"]
[null,null,"Agregar elemento"]
[null,null,"Agregar elemento"]
[null,null,"Agregar elemento"]
[null,null,"Agregar elemento"]
[null,null,"Agregar elemento"]
[null,null,"Agregar elemento"]
[null,null,"Agregar elemento"]

{"sheet":"Información de ventas","index":4,"n_rows":13,"n_cols":3,"rows_kept":13}
[null,{"$f":"NombreDeLaCompañía","v":" Nombre de la compañía"}]
[null,"Lista de comprobación de llamadas de ventas"]
[null,"Casilla","Información de ventas"]
[null,null,"Presentación clara y atractiva del producto o servicio"]
[null,null,"Incluir todos los aspectos básicos"]
[null,null,"Mencionar presencia en Internet (p. ej., un sitio web, redes sociales)"]
[null,null,"Agregar elemento"]
[null,null,"Agregar elemento"]
[null,null,"Agregar elemento"]
[null,null,"Agregar elemento"]
[null,null,"Agregar elemento"]
[null,null,"Agregar elemento"]
[null,null,"Agregar elemento"]

{"sheet":"Seguimiento","index":5,"n_rows":13,"n_cols":3,"rows_kept":13}
[null,{"$f":"NombreDeLaCompañía","v":" Nombre de la compañía"}]
[null,"Lista de comprobación de llamadas de ventas"]
[null,"Casilla","Información de seguimiento"]
[null,null,"Información de contacto del cliente"]
[null,null,"Información personal del cliente"]
[null,null,"Preferencias del cliente"]
[null,null,"¿Contacto reprogramado?"]
[null,null,"¿Venta realizada?"]
[null,null,"Agregar elemento"]
[null,null,"Agregar elemento"]
[null,null,"Agregar elemento"]
[null,null,"Agregar elemento"]
[null,null,"Agregar elemento"]